Cogmind - Beta 15 @@@ ROGUE MODE // 2025.06.28 @ 01:24:51 Player: Storm Mk9 Result: Destroyed by 7A-AK4(R) with Subdweller Machine Gun Performance ------------- Evolutions (0) 0 Regions Visited (2) 400 Robots Destroyed (23) 115 Value Destroyed (735) 735 Prototype IDs (7) 140 Alien Tech Used (0) 0 Bonus (0) 0 TOTAL SCORE: 1390 Bonus ------- None Cogmind --------- Core Integrity 0/250 Matter 265/300 Energy 190/250 System Corruption 0% Temperature Cool (0) Movement Treading (160) Location -10/Subcaves Parts ------- > --- POWER (1) -------- Ion Engine > --- PROPULSION (2) --- Light Treads Light Treads > --- UTILITY (2) ------ Large Storage Unit Seismic Detector > --- WEAPON (2) ------- Small Laser Heavy Assault Rifle > --- INVENTORY (15) --- Light Treads Heat Sink High-capacity Storage Unit High-capacity Matter Pod (200) Improved Terrain Scanner Heavy EM Pulse Gun Heavy EM Pulse Gun Heavy Assault Rifle Heavy Assault Rifle Heavy Assault Rifle Heavy Assault Rifle Heavy Assault Rifle Heavy Assault Rifle Peak State ------------ > --- POWER ------------ Ion Engine > --- PROPULSION ------- Light Treads Light Treads > --- UTILITY ---------- Large Storage Unit Seismic Detector > --- WEAPON ----------- Small Laser Heavy Assault Rifle > --- INVENTORY -------- Ion Engine Light Treads Heat Sink High-capacity Storage Unit High-capacity Matter Pod Improved Terrain Scanner EM Pulse Gun EM Pulse Gun EM Pulse Gun Light Assault Rifle Heavy Assault Rifle Heavy Assault Rifle Heavy Assault Rifle Heavy Assault Rifle Heavy Assault Rifle [Rating: 10] Favorites ----------- Power Ion Engine Engine Ion Engine Propulsion Light Treads Treads Light Treads Utility Seismic Detector Device Seismic Detector Storage Large Storage Unit Protection Light Armor Plating Weapon Light Assault Rifle Energy Gun Small Laser Ballistic Gun Light Assault Rifle Build | -11 -10 -10 ------- Run | Yrd Mat Sub Slots Evolved . | . . . Power . | . . . Propulsion . | . . . Utility . | . . . Weapon . | . . . Parts Attached 17 | 7 8 2 Power 4 | 1 2 1 Engine 4 | 1 2 1 Core . | . . . Reactor . | . . . Propulsion 4 | 2 2 . Treads 4 | 2 2 . Leg . | . . . Wheel . | . . . Hover . | . . . Flight . | . . . Utility 4 | 2 1 1 Device 1 | 1 . . Storage 2 | 1 1 . Processor . | . . . Hackware . | . . . Protection 1 | . . 1 Artifact . | . . . Weapon 5 | 2 3 . Energy Gun 2 | . 2 . Energy Cannon . | . . . Ballistic Gun 3 | 2 1 . Ballistic Cannon . | . . . Launcher . | . . . Special Weapon . | . . . Impact Weapon . | . . . Slashing Weapon . | . . . Piercing Weapon . | . . . Special Melee Weapon . | . . . Unidentified Prototypes . | . . . Parts Lost 7 | . 5 2 Power 2 | . 1 1 Propulsion 2 | . 2 . Utility 1 | . . 1 Weapon 2 | . 2 . Highest Loss Streak 2 | . 2 2 To Critical Strikes . | . . . Average Backups 11 | 1 11 14 Power . | . . . Propulsion 1 | . 1 1 Utility 3 | . 3 4 Weapon 5 | 1 5 8 Tool/Special . | . . . Unused Backups 18 | . 4 14 Power . | . . . Propulsion 1 | . . 1 Utility 4 | . . 4 Weapon 13 | . 4 9 Tool/Special . | . . . Average Slot Usage (%) 99 | . 100 99 Engine 13 | . 14 13 Treads 28 | . 28 28 Device 13 | . 14 12 Storage 14 | . 14 14 Energy Gun 9 | . 9 14 Ballistic Gun 18 | . 18 14 Peak Build Rating 10 | 7 10 10 Average Rating 8 | 4 8 9 On Entrance 5 | . 7 10 Naked Turns . | . . . Heaviest Build 32 | 13 30 32 Greatest Support 40 | 40 40 40 Greatest Overweight (x) . | . . . Average Overweight (x) . | . . . Largest Inventory Capacity 15 | 8 15 15 Average Capacity 14 | 7 14 15 Most Carried 15 | 5 15 15 Average Carried 11 | 2 11 14 Final Capacity 15 | 8 15 15 Final Carried 15 | 3 15 13 Class Distribution -------------------- 100% | Mutant Dominant Class ---------------- Mutant | -10/Materials Mutant | -10/Subcaves Resources | -11 -10 -10 ----------- Run | Yrd Mat Sub Matter Collected 667 | 282 378 7 Remotely . | . . . Salvage Created 981 | 98 729 154 Parts 60 | 7 42 11 Haulers Intercepted 2 | . 2 . Recyclers Shooed 1 | 1 . . Parts Field Recycled . | . . . Retrieved Matter . | . . . Parts Self-Destructed 2 | . . 2 Prevented . | . . . Kills | -11 -10 -10 ------- Run | Yrd Mat Sub Combat Hostiles Destroyed 19 | . 16 3 Guns 19 | . 16 3 Classes Destroyed 6 | 2 2 2 Tunneler 1 | 1 . . Hauler 2 | . 2 . Recycler 1 | 1 . . Grunt 16 | . 16 . Sentry 1 | . . 1 Subdweller 2 | . . 2 Best Kill Streak 3 | 2 3 2 Combat Bots Only 3 | . 3 2 Max Kills in Single Turn 1 | 1 1 1 Gunslinging . | . . . Exploded . | . . . Melee . | . . . Uniques/NPCs Destroyed . | . . . Combat | -11 -10 -10 -------- Run | Yrd Mat Sub Hostile Shots Fired 103 | . 78 25 Missed 22 | . 17 5 Hits 81 | . 61 20 Projectile 81 | . 61 20 Damage Taken 1254 | . 852 402 Core 262 | . 164 98 Absorbed by Shields . | . . . Core Remaining (%) 100 | 100 . . Volleys Fired 78 | 6 65 7 Largest 2 | 2 2 2 Hottest 63 | 40 63 63 Shots Fired 155 | 12 129 14 Gun 155 | 12 129 14 Cannon . | . . . Launcher . | . . . Special . | . . . Kinetic 121 | 12 102 7 Thermal 34 | . 27 7 Explosive . | . . . Electromagnetic . | . . . Robot Hit Streak 12 | 3 12 7 Robot Miss Streak 3 | 1 3 1 Penetration Max . | . . . Secondary Targets 4 | . 3 1 Max Gunslinging Chain 1 | . 1 1 Shots Hit Robots 111 | 7 94 10 Core Hits 52 | 5 40 7 Critical Kills . | . . . Critical Parts Destroyed 1 | . 1 . Critical Strikes 1 | . 1 . Destroy 1 | . 1 . Melee Attacks . | . . . Impact . | . . . Slashing . | . . . Piercing . | . . . Sneak Attacks . | . . . Combat Hostiles . | . . . Follow-up Attacks . | . . . Damage Inflicted 1062 | 58 881 123 Guns 1060 | 58 879 123 Cannons . | . . . Explosions . | . . . Melee . | . . . Ramming 2 | . 2 . Kinetic 810 | 58 693 59 Thermal 250 | . 186 64 Explosive . | . . . Electromagnetic . | . . . Impact . | . . . Slashing . | . . . Piercing . | . . . Highest Corruption . | . . . Average Corruption . | . . . Corruption Purged . | . . . Corruption Blocked . | . . . Overload Shots . | . . . Overflow Damage . | . . . Projectiles . | . . . Explosions . | . . . Melee . | . . . Knockbacks . | . . . Impact . | . . . Kinetic . | . . . Secondary . | . . . Self-Inflicted Damage . | . . . Shots . | . . . Rammed 1 | . 1 . Targets Rammed 1 | . 1 . Kicked . | . . . Crushed . | . . . Highest Temperature 85 | . 85 . Average Temperature 23 | . 23 . Received Heat Transfer 516 | . 438 78 Siege Activations . | . . . Martial Activations . | . . . Shielding Activations . | . . . Robots Disrupted . | . . . Combat Hostiles . | . . . Robots Corrupted . | . . . Combat Hostiles . | . . . Parts Fried . | . . . Impact Corruptions . | . . . Robots Melted . | . . . Combat Hostiles . | . . . Parts Melted 1 | . . 1 Heat Transferred 550 | . 400 150 Parts Sabotaged . | . . . Parts Stolen . | . . . Parts Stripped . | . . . Power Chain Reactions . | . . . Alert | -11 -10 -10 ------- Run | Yrd Mat Sub Maximum Alert Level . | . . . Low Security (%) 100 | 100 100 . Level 1 . | . . . Level 2 . | . . . Level 3 . | . . . Level 4 . | . . . Level 5 . | . . . High Security . | . . . Max Security . | . . . Peak Influence 153 | 5 153 . Initial . | . . . Average 39 | 1 41 . Influence Increases 602 | 10 542 50 Destroy 0b10 Robot/C 340 | . 320 20 Destroy 0b10 Robot/NC 20 | 10 10 . Destroy Leader 74 | . 74 . Successful Hack 48 | . 48 . Select Force Hacks 60 | . 60 . Disable Machine 15 | . 15 . Lose Combat Pursuer 45 | . 15 30 Influence Decreases 602 | 10 495 97 Entered New Map 23 | . . 23 Time Decay 539 | 10 455 74 Lost Part 40 | . 40 . Squads Dispatched 5 | . 5 . Investigation 4 | . 4 . Extermination . | . . . Reinforcement 1 | . 1 . Assault . | . . . Garrison . | . . . Intercept . | . . . Searches Triggered . | . . . Construction Impeded . | . . . Haulers Reinforced . | . . . Active Scanning Responses . | . . . Cargo Convoy Interrupts . | . . . Stealth | -11 -10 -10 --------- Run | Yrd Mat Sub Distress Signals 2 | . 2 . Communications Jammed . | . . . Distress Signals . | . . . Times Spotted 32 | . 25 7 Peak Tracking Total 5 | . 5 4 Tactical Retreats 2 | . 1 1 Traps | -11 -10 -10 ------- Run | Yrd Mat Sub Traps Triggered 4 | . 4 . Indirectly . | . . . Trap Hack Attempts . | . . . Triggered . | . . . Disarmed . | . . . Reprogrammed . | . . . Reused . | . . . Traps Extracted . | . . . Installed . | . . . Triggered . | . . . Machines | -11 -10 -10 ---------- Run | Yrd Mat Sub Machines Disabled 1 | . 1 . Max in Single Turn 1 | . 1 . Machines Repaired . | . . . Machines Dismantled . | . . . Machines Sabotaged . | . . . Overloaded Fab Kills . | . . . Hacking | -11 -10 -10 --------- Run | Yrd Mat Sub Machines Accessed 10 | . 10 . Terminals 8 | . 8 . Fabricators . | . . . Repair Stations . | . . . Recycling Units 2 | . 2 . Scanalyzers . | . . . Garrison Access . | . . . Total Hacks 33 | . 33 . Successful 24 | . 24 . Failed 8 | . 8 . Catastrophic 2 | . 2 . Database Lockouts 1 | . 1 . Manual 25 | . 25 . Terminals 31 | . 31 . Fabricators . | . . . Repair Stations . | . . . Recycling Units 2 | . 2 . Scanalyzers . | . . . Garrison Access . | . . . Terminal Hacks 14 | . 14 . Robot Analysis 2 | . 2 . Prototype ID Bank 6 | . 6 . Terminal Index 1 | . 1 . Locate Traps 1 | . 1 . Dispatch Records 2 | . 2 . Maintenance Status 1 | . 1 . Transport Status 1 | . 1 . Fabricator Hacks . | . . . Repair Station Hacks . | . . . Recycling Unit Hacks . | . . . Scanalyzer . | . . . Garrison Access Hacks . | . . . Unauthorized Hacks 10 | . 10 . Terminals 8 | . 8 . Botnet 2 | . 2 . Operators 1 | . 1 . Skim 5 | . 5 . Fabricators . | . . . Repair Stations . | . . . Recycling Units 2 | . 2 . Tunnel 2 | . 2 . Scanalyzers . | . . . Garrison Access . | . . . Data Cores Recovered . | . . . Used . | . . . Hacking Detections 7 | . 7 . Full Trace Events . | . . . Feedback Events . | . . . Feedback Blocked . | . . . Robot Schematics Acquired . | . . . Robots Built . | . . . Authchips . | . . . Time . | . . . Total Robot Build Rating . | . . . Part Schematics Acquired . | . . . Parts Built . | . . . Authchips . | . . . Time . | . . . Total Part Build Rating . | . . . Parts Repaired . | . . . Time . | . . . Parts Recycled . | . . . Recycled Matter . | . . . Retrieved Matter . | . . . Retrieved Components . | . . . Parts Scanalyzed . | . . . Part Schematics Acquired . | . . . Parts Damaged . | . . . Bothacking | -11 -10 -10 ------------ Run | Yrd Mat Sub Used RIF Installer . | . . . Robots Hacked . | . . . Non-combat . | . . . Combat . | . . . Robot Hacks Applied . | . . . Relay Couplers Released . | . . . Fabnet Peak Effective % . | . . . Robots Rewired . | . . . Allies Hacked . | . . . Hacks Repelled . | . . . Allies | -11 -10 -10 -------- Run | Yrd Mat Sub Total Allies . | . . . Largest Group . | . . . Highest-Rated Group . | . . . Highest-Rated Ally . | . . . Total Orders . | . . . Ally Attacks . | . . . Total Damage . | . . . Kills . | . . . Allies Corrupted . | . . . Allies Melted . | . . . Intel | -11 -10 -10 ------- Run | Yrd Mat Sub Active Infowar (turns) 2469 | 15 2105 349 Seismic 2469 | 15 2105 349 Robot Analysis Total 2 | . 2 . Derelict Logs Recovered . | . . . Drone Launches . | . . . Drone Recoveries . | . . . Exploration | -11 -10 -10 ------------- Run | Yrd Mat Sub Turns Passed 2568 | 89 2105 374 Spaces Moved 856 | 46 610 200 Core 14 | 14 . . Treads 842 | 32 610 200 Legs . | . . . Wheels . | . . . Hover . | . . . Flight . | . . . Fastest Speed 50 | 50 160 160 Average Speed 158 | 126 160 160 Slowest Speed 160 | 160 160 160 Overloaded Moves . | . . . Propulsion Burnouts . | . . . Robots Hopped . | . . . Potential Cave-ins . | . . . Cave-ins Triggered . | . . . Exploration Rate (%) 36 | 4 89 17 Regions Visited 2 Branch Regions 1 Pre-discovered Areas 2 | . 2 . Known Exits Taken 1 | . 1 . Unknown Exits Taken 1 | 1 . . Scrap Searched . | . . . Spaces Dug . | . . . Terrain Destroyed . | . . . Melee . | . . . Projectile . | . . . AOE . | . . . Terrain Rammed . | . . . Walls Destroyed . | . . . Machines Disabled . | . . . Actions | -11 -10 -10 --------- Run | Yrd Mat Sub Total 1945 | 67 1636 242 Wait 952 | . 923 29 Move 854 | 45 609 200 Hop . | . . . Pick Up 33 | 9 23 1 Fast Attach 1 | 1 . . Attach 13 | 6 5 2 Detach . | . . . Swap 4 | . 3 1 Drop 8 | . 7 1 Fire 78 | 6 65 7 Melee . | . . . Ram . | . . . Kick . | . . . Crush 1 | . 1 . Escape Stasis . | . . . Rewire 1 | . . 1 Trap . | . . . Miscellaneous . | . . . Route ------- -11/Scrapyard -10/Materials (discovered 5 exits: *Mat x3 / *Min / *Sub) -10/Subcaves (discovered 2 exits: Mat x2) History --------- Turn | Location | Event 3 | -11/Scrapyard | Discovered new exit (range 16) 90 | -11/Scrapyard | Entered Materials 314 | -10/Materials | Build established: Mutant 573 | -10/Materials | Discovered new exit (range 11) 893 | -10/Materials | Central database locked down 942 | -10/Materials | Discovered new exit (range 11) 991 | -10/Materials | Core integrity fell below 50% 1174 | -10/Materials | Identified exit to Materials 1248 | -10/Materials | Identified exit to Mines 1248 | -10/Materials | Identified exit to Subcaves 1370 | -10/Materials | Learned Storage garrison access intel 2195 | -10/Materials | Entered Subcaves 2196 | -10/Subcaves | Approached by a straggling Scientist 2196 | -10/Subcaves | Identified exit to Materials 2535 | -10/Subcaves | A Subdweller sparked back to life 2535 | -10/Subcaves | A Subdweller sparked back to life 2535 | -10/Subcaves | A Subdweller sparked back to life 2561 | -10/Subcaves | Core integrity fell below 20% 2569 | -10/Subcaves | Destroyed by 7A-AK4(R) with Subdweller Machine Gun Last Messages --------------- 02326_ Acquired 7 matter. 02405_ 2D-10R(u) builds Twisted Machinery. 02497_ MH-PE0(O) collects matter. 02517_ Attempting to rewire IN-A6R(R). 02517_ IN-A6R(R) is broken beyond repair. 02535_ OG-KU6(R) creaks and sparks as it begins to move. 02535_ 7A-2DD(R) creaks and sparks as it begins to move. 02535_ IN-A6R(R) creaks and sparks as it begins to move. 02535_ 2D-10R(u) cries out in pain. 02535_ 2D-10R(u) destroyed. 02539_ L5-SJQ(R): "ECOKILL!" 02546_ Ion Engine destroyed. 02563_ Lgt. Armor Plating destroyed. 02565_ Disposable Heat Sink melted. 02565_ 7A-2DD(R) destroyed. 02565_ Switching to secondary target: L5-SJQ(R). 02568_ L5-SJQ(R) destroyed. Map ----- +----------------------------------------------------+ | ????????????????????????????####?????????????????? | | ??????????????????####?###### ##????????????????? | | ??????????????????# ### ## #????????????????? | | ??????????????????## #????????????????? | | ??????????????????# # # ##"""#???????????? | | ??????????????????## ### ] """#????????????? | | ??????????????????## #?#### #" #????????????? | | ??????????????????# ##????# """ ##????????????? | | ??????????????????# ##????#""" #?????????????? | | ??????????????????## #???? " "" #????????????? | | ?????????????????## # #????# "" ???????????? | | ???????????????### ###????## ## ?????????? | | ??????????????## ##???????#="#??##??#?????????? | | ??????????????# ###???###??#""#######??????????? | | ??????????????# ##?????# ####" ## #??????????? | | ??????????????# #??##??# ""#=%="""#??????????? | | ??????????????# ### #??# "" | "#??????????? | | ??????????????# ] #??# " #??????????? | | ??????????????# #### &" #??????????? | | ??????????????## # # # ## ###??????????? | | ??????????????## ### ### #????????????? | | ??????????????# #?# #?#####????????????? | | ??????????????## ###R ## #??????????????????? | | ???????????????# ##%= #####??????????????????? | | ???????????????### #[%##??????????????????????? | | ?????????????????## &&*@##?????????????????????? | | ??????????????????# & ##????????????????????? | | ?????????????????# ## ##???????????????????? | | ????????????????# #### ##??????????????????? | | ???????????????# #??# #??????????????????? | | ???????????????# ?## ####??????????????????? | | ???????????????# ## #?????????????????????? | | ???????????????#### # ##?????????????????????? | | ??????????????????# ## ###????????????????????? | | ??????????????????# ?## #????????????????????? | | ?????????????????? ?## ##???????????????????? | | ?????????????????? ### #???????????????????? | | ??????????????????#### ##???????????????????? | | ????????????????????# ##????????????????????? | | ????????????????????# #?????????????????????? | | ???????????????????## #?????????????????????? | | ???????????????????# ##?????????????????????? | | ?????????????????### #??????????????????????? | | ?????????????????# #??????????????????????? | | ?????????????????#### ####???????????????????? | | ????????????????????## ##??????????????????? | | ????????????????????## #??????????????????? | | ???????????????????## ##??????????????????? | | ???????????????????# #???????????????????? | | ???????????????????# #???????????????????? | +----------------------------------------------------+ Best States ------------- Heat Dissipation 25 Energy Generation 10 Energy Capacity 250 Matter Stores 300 Matter Capacity 300 Sight Range 16 Terrain Scan Density 10 Armor Coverage 150 Evasion (%) 50 Recoil Reduction 2 Item Schematics ----------------- None Robot Schematics ------------------ None Fabricated ------------ Nothing Repaired ---------- Nothing Alien Tech Used ----------------- None Achievements -------------- None Challenges ------------ None Game ------ Seed ThunderChainPendant Manual? 0 Play Time 00:16:51 Cumulative 91.5 hours Start 2025.06.27 @ 22:43:54 End 2025.06.28 @ 01:24:51 Sessions 3 Manual Loads 0 Difficulty Rogue Special Mode None Game No. 88 Rogue 69 Adventurer 0 Explorer 19 Win Type - Total 0 Types 0/0/0/0/0/0/0/0/0/0 Lore% 56 Gallery% 49 Achievement% 68 Wizard Run 0 Options --------- Layout 1 ASCII 0 Keyboard 0 Movement Mouse Keybinds 0 Fullscreen 2 Font 16/SmallcapsGlow Map View 50x40 Zoom Use 0% Tactical HUD 1 Map Filters NONE Filters NONE Steam SD RUN: 9859ab12-ce79-49b3-b942-1da0aef0ed47